bitfinex/quotes_ETHUSD_20251017
["timestamp","ask_amount","ask_price","bid_price","bid_amount"]
[1760722082092,30.98181492,3802.2,3802.1,0.001]
[1760722082290,4.36047953,3802.2,3802.1,0.001]
[1760722082695,0.002,3803.9,3802.1,0.7002]
[1760722082696,0.002,3802.9,3802.1,0.7002]
[1760722082884,0.3093,3802.8,3802.2,2.6300484]
[1760722083199,0.3093,3802.8,3802.4,2.62991223]
[1760722083359,0.3093,3802.8,3802.1,2.63111048]
[1760722083360,0.13617138,3802.7,3802.2,2.63004426]
[1760722083566,0.13617138,3802.7,3802.3,2.62995899]
[1760722083793,0.1033,3802.6,3802.1,0.001]
[1760722084090,0.0328731,3802.5,3802.1,0.001]
[1760722084290,0.04584425,3802.5,3802.1,0.001]
[1760722084498,0.04584425,3802.5,3802.3,2.62996539]
[1760722084712,0.1033,3802.4,3802.1,2.63110542]
[1760722084875,0.04584425,3802.5,3802.1,0.001]
[1760722084876,0.1033,3802.3,3802.1,0.001]
[1760722085061,0.1033,3802.3,3802.1,2.6311104]
[1760722085272,0.1033,3802.3,3802.1,0.001]
[1760722085472,0.0448,3802.1,3801.8,0.001]
[1760722085697,0.4834914,3802.0,3801.8,0.001]
[1760722085903,0.5867914,3802.0,3801.8,0.001]
[1760722086110,0.1033,3801.9,3801.8,0.001]
[1760722087513,0.13617829,3801.9,3801.8,0.001]
[1760722087885,0.1033,3801.9,3801.8,0.001]
[1760722088310,0.42237844,3801.9,3801.8,0.001]
[1760722089010,0.1033,3801.9,3801.8,0.001]
[1760722091208,0.45741566,3802.1,3801.8,0.001]
[1760722091417,3.08756575,3802.1,3801.8,0.001]
[1760722091611,0.1033,3802.0,3801.8,0.001]
[1760722092015,0.1033,3801.9,3801.8,0.001]
[1760722092217,31.39992903,3801.9,3801.8,0.001]
[1760722092711,23.57645103,3801.9,3801.8,0.001]
[1760722093316,24.68139303,3801.9,3801.8,0.001]
[1760722093605,24.78690232,3801.9,3801.8,0.001]
[1760722094283,31.50543832,3801.9,3801.8,0.001]
[1760722094619,11.037938,3801.6,3801.4,0.001]
[1760722094794,15.42936032,3801.5,3801.4,0.001]
[1760722094999,13.35848657,3801.5,3801.4,0.001]
[1760722095229,15.49977857,3801.5,3801.4,0.001]
[1760722096413,9.26601057,3801.5,3801.4,0.001]
[1760722096714,10.31414833,3801.5,3801.4,0.001]
[1760722097286,16.54791633,3801.5,3801.4,0.001]
[1760722097614,12.01709533,3801.5,3801.4,0.001]
[1760722098018,18.7698179,3801.5,3801.4,0.001]
[1760722098518,23.3006389,3801.5,3801.4,0.001]
[1760722099514,1.73400119,3801.1,3800.7,0.001]
[1760722099698,15.43571187,3801.0,3800.7,0.001]
[1760722100001,7.9427446,3801.0,3800.7,0.001]
[1760722100222,7.07926945,3801.0,3800.7,0.001]
[1760722100417,15.91891545,3801.0,3800.7,0.001]
[1760722100613,12.93063381,3801.0,3800.7,0.001]
[1760722100905,9.63333181,3801.0,3800.7,0.001]
[1760722101334,17.77388181,3801.0,3800.7,0.001]
[1760722101622,6.62664262,3801.0,3800.7,0.001]
[1760722101829,7.3762906,3801.0,3800.7,0.001]
[1760722102001,7.4795906,3801.0,3800.7,0.001]
[1760722102402,4.46441983,3801.0,3800.7,0.001]
[1760722102605,9.46466183,3801.0,3800.7,0.001]
[1760722102820,8.15782383,3801.0,3800.7,0.001]
[1760722103030,9.24760561,3801.0,3800.7,0.001]
[1760722103230,15.10439261,3801.0,3800.7,0.001]
[1760722103434,14.14539261,3801.0,3800.7,0.001]
[1760722103825,11.34754961,3801.0,3800.7,0.001]
[1760722104448,12.29421161,3801.0,3800.7,0.001]
[1760722104832,12.39751161,3801.0,3800.7,0.001]
[1760722105136,12.81027406,3801.0,3800.7,0.001]
[1760722105541,17.10820206,3801.0,3800.7,0.001]
[1760722106242,17.11420325,3801.0,3800.7,0.001]
[1760722107338,10.10564925,3801.0,3800.7,0.001]
[1760722107540,13.50617665,3801.0,3800.7,0.001]
[1760722107844,0.002,3801.1,3801.0,2.6308866]
[1760722108043,0.1332,3801.1,3801.0,3.0932866]
[1760722109251,0.002,3801.1,3801.0,3.2244866]
[1760722110149,0.002,3801.1,3801.0,3.23760341]
[1760722110363,0.002,3801.1,3801.0,3.81164381]
[1760722111380,0.002,3801.1,3801.0,3.2244866]
[1760722111531,0.002,3801.1,3801.0,3.0932866]
[1760722113455,0.002,3801.1,3801.0,2.6308866]
[1760722113962,0.002,3801.1,3800.9,0.001]
[1760722114170,0.002,3801.1,3801.0,2.6308866]
[1760722114662,0.002,3801.1,3801.0,3.0932866]
[1760722115648,0.002,3801.1,3801.0,3.6660177]
[1760722116360,0.002,3801.1,3801.0,3.0932866]
[1760722116689,0.1332,3801.1,3801.0,2.6308866]
[1760722117294,0.1332,3801.1,3801.0,3.0932866]
[1760722117454,0.002,3801.1,3801.0,3.0932866]
[1760722121184,0.002,3801.1,3801.0,3.67913774]
[1760722121357,0.002,3801.1,3801.0,3.0932866]
[1760722123593,0.002,3801.1,3801.0,2.6308866]
[1760722123793,0.1332,3801.1,3801.0,2.6308866]
[1760722124292,0.1332,3801.1,3801.0,2.6318866]
[1760722127787,2.86301739,3801.1,3801.0,0.001]
[1760722127995,2.67481012,3800.9,3800.8,0.001]
[1760722128313,1.728,3800.6,3798.6,0.2339]
[1760722128608,22.27008704,3800.5,3799.1,0.2339]
[1760722128808,20.71485991,3800.5,3799.4,0.4624]
[1760722128966,4.20228414,3800.5,3799.4,0.4624]
[1760722129168,1.86169356,3800.5,3799.7,0.4624]
[1760722129497,1.96009356,3800.5,3799.7,2.63178499]
[1760722130007,1.96009356,3800.5,3799.6,2.63185302]
[1760722130305,9.35008756,3800.5,3799.6,2.63185302]
[1760722130480,9.14908756,3800.5,3799.6,2.63185302]
[1760722130682,9.14908756,3800.5,3799.5,2.63191603]
[1760722130999,9.14908756,3800.5,3799.6,2.63184628]
[1760722131700,12.99803156,3800.5,3799.4,2.63193611]
[1760722131868,14.56095339,3800.5,3799.5,2.63190135]
[1760722132071,14.56095339,3800.5,3799.6,2.63185433]
[1760722132391,14.56095339,3800.5,3799.5,2.6319212]
[1760722132595,14.56095339,3800.5,3799.6,2.63184888]
[1760722133609,14.87535968,3800.5,3799.7,0.4311]
[1760722133792,14.46255339,3800.5,3799.7,3.06287783]
[1760722134311,14.97375084,3800.5,3799.6,2.6317921]
[1760722134516,14.97375084,3800.5,3799.7,2.63176733]
[1760722135124,17.60498357,3800.5,3799.3,3.06311346]
[1760722135322,15.07929828,3800.5,3799.4,2.63198341]
[1760722135688,15.07929828,3800.5,3799.3,2.63200061]
[1760722136024,17.71053101,3800.5,3799.3,2.63200061]
[1760722136181,15.07929828,3800.5,3799.4,0.4311]
[1760722136379,15.07929828,3800.5,3799.5,2.63186481]
[1760722136619,15.07929828,3800.5,3799.5,2.63190393]
[1760722137114,15.07929828,3800.5,3799.1,0.2339]
[1760722137320,14.87535084,3800.5,3799.6,3.06289793]
[1760722137688,14.87535084,3800.5,3799.6,3.06293644]
[1760722138018,14.97375084,3800.5,3799.6,3.06293644]
[1760722138213,14.97375084,3800.5,3799.7,2.63176287]
[1760722138896,1.728,3800.4,3799.7,2.59096287]
[1760722139218,2.3049358,3800.4,3799.7,2.59096287]
[1760722139416,0.64489101,3800.5,3799.7,2.59096287]
[1760722139617,0.04587474,3800.3,3799.7,2.59096287]
[1760722139817,0.04587474,3800.3,3799.8,0.4311]
[1760722140314,0.04587474,3800.3,3799.9,0.4311]
[1760722140613,0.04587474,3800.3,3799.5,0.4311]
[1760722140989,0.04587474,3800.3,3799.6,2.63185598]
[1760722141197,0.04587474,3800.3,3799.7,0.4311]
[1760722142417,0.04587474,3800.3,3800.0,0.001]
[1760722143117,0.04587474,3800.3,3800.0,0.4679]
[1760722143418,0.04587474,3800.3,3800.1,0.6847]
[1760722143586,0.04587474,3800.3,3800.0,0.001]
[1760722143988,0.131293,3800.2,3800.0,0.001]
[1760722144184,0.34376587,3800.2,3800.0,0.001]
[1760722144396,0.0984,3800.2,3800.0,0.001]
[1760722146125,1.77387474,3800.3,3800.0,0.001]
[1760722146788,1.728,3800.3,3800.0,0.001]
[1760722147211,1.728,3800.3,3800.0,0.4679]
[1760722147518,0.8616491,3800.2,3800.0,0.4679]
[1760722147725,1.728,3800.3,3800.0,0.4679]
[1760722148220,1.728,3800.3,3800.0,0.001]
[1760722148623,1.728,3800.3,3800.1,0.6847]
[1760722149039,1.728,3800.3,3800.1,0.2178]
[1760722149210,1.728,3800.3,3800.1,0.6847]
[1760722149527,2.5896491,3800.3,3800.0,0.001]
[1760722149730,0.1312,3800.1,3800.0,0.4679]
[1760722150027,0.1312,3800.1,3800.0,0.001]
[1760722150521,0.54399032,3800.1,3800.0,0.001]
[1760722150824,0.54399032,3800.1,3800.0,3.09947894]
[1760722151007,0.54399032,3800.1,3800.0,0.4679]
[1760722151530,0.54399032,3800.1,3800.0,0.001]
[1760722151827,1.40977674,3800.1,3800.0,0.001]
[1760722152327,0.54399032,3800.1,3800.0,0.001]
[1760722153431,0.54399032,3800.1,3800.0,2.63257894]
[1760722153837,0.54399032,3800.1,3800.0,0.001]
[1760722155639,0.41279032,3800.1,3800.0,2.63257894]
[1760722155808,0.41279032,3800.1,3800.0,0.4679]
[1760722156005,0.41279032,3800.1,3800.0,3.09947894]
[1760722156556,0.41279032,3800.1,3800.0,0.001]
[1760722156706,0.44568419,3800.1,3800.0,0.001]
[1760722157034,1.30164,3800.1,3800.0,0.001]
[1760722157231,0.44568419,3800.1,3800.0,0.001]
[1760722157726,0.41279032,3800.1,3800.0,2.63257894]
[1760722158233,0.41279032,3800.1,3800.0,3.09947894]
[1760722158533,0.41279032,3800.1,3800.0,0.001]
[1760722159131,0.41279032,3800.1,3800.0,3.09947894]
[1760722159331,0.41279032,3800.1,3800.0,0.001]
[1760722160646,0.41279032,3800.1,3800.0,3.09947894]
[1760722161546,0.41279032,3800.1,3800.0,0.001]
[1760722162132,0.41279032,3800.1,3800.0,2.63257894]
[1760722162346,0.41279032,3800.1,3800.0,0.001]
[1760722162561,1.26565674,3800.1,3800.0,0.001]
[1760722163464,0.41279032,3800.1,3800.0,0.001]
[1760722164672,0.41279032,3800.1,3800.0,2.63257894]
[1760722164870,0.41279032,3800.1,3800.0,3.08557894]
[1760722165424,0.002,3800.2,3800.0,3.08557894]
[1760722165425,0.002,3800.2,3800.1,2.63150969]
[1760722165627,0.002,3800.2,3800.1,3.30430969]
[1760722167179,0.002,3800.2,3800.1,3.92425093]
[1760722167468,0.002,3800.2,3800.1,4.05545093]
[1760722167767,0.002,3800.2,3800.1,4.04231855]
[1760722167974,0.002,3800.2,3800.1,3.43550969]
[1760722168359,0.002,3800.2,3800.1,3.30430969]
[1760722170461,0.002,3800.2,3800.1,2.85130969]
[1760722170681,0.002,3800.2,3800.1,2.63150969]
[1760722171184,0.002,3800.2,3800.1,3.30430969]
[1760722172179,0.002,3800.2,3800.1,3.89799855]
[1760722173090,0.002,3800.2,3800.1,3.91113093]
[1760722173392,0.002,3800.2,3800.1,4.02919855]
[1760722175180,0.002,3800.2,3800.1,3.98534425]
[1760722175616,0.002,3800.2,3800.1,8.95706662]
[1760722175789,0.002,3800.2,3800.1,8.94393424]
[1760722176492,0.002,3800.2,3800.1,3.98534425]
[1760722176695,0.002,3800.2,3800.1,3.39165539]
[1760722176877,0.002,3800.2,3800.1,2.93865539]
[1760722177460,0.002,3800.2,3800.1,2.71885539]
[1760722178260,0.002,3800.2,3800.1,2.93865539]
[1760722178486,0.002,3800.2,3800.1,3.39165539]
[1760722178995,0.002,3800.2,3800.1,3.99407882]
[1760722179775,0.002,3800.2,3800.1,3.54107882]
[1760722179981,0.002,3800.2,3800.1,2.71885539]
[1760722181674,0.002,3800.2,3800.1,2.58765539]
[1760722189097,0.002,3800.2,3800.1,3.26045539]
[1760722190059,0.002,3800.2,3800.1,2.80745539]
[1760722190292,0.002,3800.2,3800.1,2.58765539]
[1760722191077,0.002,3800.2,3800.1,3.04065539]
[1760722191575,0.002,3800.2,3800.1,2.58765539]
[1760722191779,0.002,3800.2,3800.1,3.27955539]
[1760722192307,0.002,3800.2,3800.1,2.58765539]
[1760722193484,0.101,3800.2,3800.1,2.58765539]
[1760722194801,0.101,3800.2,3800.1,2.58865539]
[1760722195213,0.002,3800.2,3800.1,2.58865539]
[1760722195418,0.101,3800.2,3800.1,2.58865539]
[1760722195715,0.002,3800.2,3800.1,2.58865539]
[1760722198123,0.002,3800.2,3800.1,3.28055539]
[1760722199413,0.002,3800.2,3800.1,2.58865539]
[1760722200504,0.002,3800.2,3800.1,3.29368777]
[1760722200721,0.002,3800.2,3800.1,2.81945539]
[1760722201040,0.002,3800.2,3800.1,2.58865539]
[1760722201214,0.002,3800.2,3800.1,0.001]
[1760722201420,11.93917799,3800.2,3800.1,0.001]
[1760722201661,7.02646078,3800.2,3800.1,0.001]
[1760722201834,10.00657685,3800.2,3800.1,0.001]
[1760722202128,12.21809807,3800.2,3800.1,0.001]
[1760722202451,0.002,3800.2,3800.1,3.27450969]
[1760722202605,0.002,3800.2,3800.1,8.23309968]
[1760722203338,0.002,3800.2,3800.1,3.27450969]
[1760722203547,0.002,3800.2,3800.1,2.63250969]
[1760722203839,0.002,3800.2,3800.1,3.28764207]
[1760722204041,0.002,3800.2,3800.1,3.86653054]
[1760722204201,0.002,3800.2,3800.1,3.87966292]
[1760722204405,0.002,3800.2,3800.1,3.86653054]
[1760722204836,0.002,3800.2,3800.1,3.43873054]
[1760722205020,0.002,3800.2,3800.1,3.86653054]
[1760722206139,0.002,3800.2,3800.1,0.001]
[1760722206447,5.76336,3800.2,3800.1,0.001]
[1760722206645,4.91414655,3800.2,3800.1,0.001]
[1760722206848,2.28877655,3800.2,3800.1,0.001]
[1760722207053,2.24290249,3800.2,3800.1,0.001]
[1760722207227,6.83636974,3800.2,3800.1,0.001]
[1760722207427,6.80347674,3800.2,3800.1,0.001]
[1760722207627,16.63263019,3800.2,3800.1,0.001]
[1760722207926,21.59752601,3800.2,3800.0,0.001]
[1760722208126,21.59752601,3800.2,3799.7,0.001]
[1760722208127,12.765938,3799.8,3799.7,0.001]
[1760722208439,7.96318379,3799.8,3799.7,0.001]
[1760722208833,3.41748618,3799.8,3799.7,0.001]
[1760722209553,11.53053617,3799.8,3799.7,0.001]
[1760722209748,7.19848237,3799.8,3799.7,0.001]
[1760722210326,2.23989238,3799.8,3799.7,0.001]
[1760722210536,0.002,3800.2,3800.1,2.63150969]
[1760722210770,0.002,3800.2,3800.1,3.54979304]
[1760722211872,0.002,3800.2,3800.1,3.53666066]
[1760722213062,0.002,3800.2,3800.1,3.10886066]
[1760722213263,0.002,3800.2,3800.1,2.63150969]
[1760722213469,0.002,3800.2,3799.7,2.63276479]
[1760722213677,0.002,3800.2,3799.7,0.001]
[1760722213879,0.099,3800.1,3799.8,2.63171608]
[1760722214240,0.099,3800.1,3799.7,2.63276491]
[1760722214441,0.099,3800.0,3799.7,0.001]
[1760722214673,0.099,3799.9,3799.7,0.001]
[1760722214979,0.099,3799.8,3799.7,0.001]
[1760722215177,0.41281437,3800.0,3799.7,0.001]
[1760722215477,0.04587648,3799.8,3799.7,0.001]
[1760722216177,0.04587648,3799.8,3799.7,2.63278672]
[1760722216883,0.04587648,3799.8,3799.7,3.06058672]
[1760722217041,0.04587648,3799.8,3799.7,2.63278672]
[1760722217379,0.002,3800.2,3800.1,2.63150969]
[1760722217543,0.002,3800.2,3800.1,2.84570969]
[1760722217747,0.002,3800.2,3800.1,3.27350969]
[1760722218174,0.002,3800.2,3800.1,2.84570969]
[1760722218373,0.002,3800.2,3800.1,3.27350969]
[1760722218581,0.002,3800.2,3800.1,3.86402029]
[1760722220268,0.002,3800.5,3800.4,2.63130196]
[1760722220269,1e-08,3800.5,3800.4,2.63130196]
[1760722220487,1e-08,3800.5,3800.4,2.64442915]
[1760722220802,1e-08,3800.5,3800.4,3.19030196]
[1760722221000,1e-08,3800.5,3800.4,4.11609297]
[1760722222073,1e-08,3800.5,3800.4,4.12922016]
[1760722222504,1e-08,3800.5,3800.4,4.11609297]
[1760722222802,0.002,3800.6,3800.5,2.63123273]
[1760722224228,0.002,3800.6,3800.5,3.07723273]
[1760722224407,0.002,3800.6,3800.5,5.31232081]
[1760722225104,0.002,3800.6,3800.5,4.86632081]
[1760722225272,0.002,3800.6,3800.5,2.64435819]
[1760722225600,0.1076,3800.6,3800.1,0.1312]
[1760722225799,0.1056,3800.5,3800.1,0.1312]
[1760722226002,0.1056,3800.5,3799.7,0.001]
[1760722226003,1.728,3800.3,3799.7,0.001]
[1760722226202,0.002,3800.6,3799.7,0.001]
[1760722226203,0.2091,3799.8,3799.7,0.001]
[1760722226379,0.3157,3799.8,3799.7,0.001]
[1760722226576,0.3157,3799.8,3799.6,0.001]
[1760722226577,12.77229923,3799.7,3799.6,0.001]
[1760722226768,12.66094915,3799.7,3799.6,0.001]
[1760722226972,12.76664915,3799.7,3799.6,0.001]
[1760722227171,3.14249992,3799.7,3799.6,0.001]
[1760722227506,1.8337,3799.7,3799.6,0.001]
[1760722227684,1.728,3799.7,3799.6,0.001]
[1760722227875,1.728,3799.7,3799.6,2.63285598]
[1760722228070,1.728,3799.7,3799.6,0.001]
[1760722228271,1.8347,3799.7,3799.6,2.63285598]
[1760722228707,1.728,3799.7,3799.6,2.63285598]
[1760722229816,1.728,3799.7,3799.6,0.001]
[1760722230017,1.8347,3799.7,3799.6,0.001]
[1760722230308,1.728,3799.7,3799.6,0.001]
[1760722230479,1.77387529,3799.7,3799.6,2.63285598]
[1760722230681,1.77387529,3799.7,3799.6,0.001]
[1760722231086,1.88057529,3799.7,3799.6,0.001]
[1760722231798,1.77387529,3799.7,3799.6,0.001]
[1760722231991,1.77387529,3799.7,3799.6,2.63285598]
[1760722233105,1.77387529,3799.7,3799.6,0.001]
[1760722233404,1.77387529,3799.7,3799.6,2.63285598]
[1760722233710,1.77387529,3799.7,3799.6,0.001]
[1760722233907,2.05796282,3799.7,3799.6,0.001]
[1760722234501,1.88057529,3799.7,3799.6,0.001]
[1760722235531,12.91851329,3799.7,3799.6,0.001]
[1760722236235,21.84442472,3799.7,3799.6,0.001]
[1760722236405,19.6255637,3799.7,3799.6,0.001]
[1760722237818,11.8085707,3799.7,3799.6,0.001]
[1760722238022,12.98942777,3799.7,3799.6,0.001]
[1760722238748,17.88879877,3799.7,3799.6,0.001]
[1760722239154,17.93468705,3799.7,3799.6,0.001]
[1760722239714,12.65270005,3799.7,3799.6,0.001]
[1760722240753,17.48389605,3799.7,3799.6,0.001]
[1760722241448,6.38588828,3799.7,3799.6,0.001]
[1760722241645,0.04588828,3799.7,3799.6,3.07885598]
[1760722241810,0.04588828,3799.7,3799.6,0.001]
[1760722242315,5.92999228,3799.7,3799.6,0.001]
[1760722242520,10.54712328,3799.7,3799.6,0.001]
[1760722242825,5.81089342,3799.7,3799.6,0.001]
[1760722243047,1.88058828,3799.7,3799.6,0.001]
[1760722243248,11.25391528,3799.7,3799.6,0.001]
[1760722243445,1.88058828,3799.7,3799.6,0.001]
[1760722243672,12.95142361,3799.7,3799.6,0.001]
[1760722243870,12.91852628,3799.7,3799.6,0.001]
[1760722244050,14.21100672,3799.7,3799.6,0.001]
[1760722244225,12.08743872,3799.7,3799.6,0.001]
[1760722244430,15.31308272,3799.7,3799.6,0.001]
[1760722244631,15.41978272,3799.7,3799.6,0.001]
[1760722245564,16.13357372,3799.7,3799.6,0.001]
[1760722245761,9.40636872,3799.7,3799.6,0.001]
[1760722245947,9.81925664,3799.7,3799.6,0.001]
[1760722246635,9.77336836,3799.7,3799.6,0.001]
[1760722246836,9.88006836,3799.7,3799.6,0.001]
[1760722247446,14.36691036,3799.7,3799.6,0.001]
[1760722247647,14.39538373,3799.7,3799.6,0.001]
[1760722247844,14.39538373,3799.7,3799.6,2.63285598]
[1760722247845,9.80184173,3799.7,3799.6,2.63285598]
[1760722248039,6.78136129,3799.7,3799.6,3.07885598]
[1760722248235,0.44136129,3799.7,3799.6,3.07885598]
[1760722248550,0.15967337,3799.7,3799.6,3.07885598]
[1760722249658,0.02847337,3799.7,3799.6,3.07885598]
[1760722249846,0.02847337,3799.7,3799.6,3.66318137]
[1760722250650,0.02847337,3799.7,3799.6,3.65004033]
[1760722250850,0.02847337,3799.7,3799.6,3.07885598]
[1760722251959,0.02847337,3799.7,3799.6,2.63285598]
[1760722252462,0.02847337,3799.7,3799.6,0.001]
[1760722252762,0.02847337,3799.7,3799.6,2.63285598]
[1760722254037,0.02847337,3799.7,3799.6,3.10349702]
[1760722254310,0.02847337,3799.7,3799.6,3.66400195]
[1760722254765,1e-08,3799.7,3799.6,3.79520195]
[1760722255536,1e-08,3800.2,3800.1,2.63150969]
[1760722255735,1e-08,3800.2,3800.1,2.84810969]
[1760722255940,1e-08,3800.2,3800.1,3.30560969]
[1760722256139,1e-08,3800.2,3800.1,3.89932997]
[1760722258371,1e-08,3800.2,3800.1,3.91246235]
[1760722258559,1e-08,3800.2,3800.1,3.89932997]
[1760722259370,1e-08,3800.2,3800.1,3.44182997]
[1760722260174,1e-08,3800.2,3800.1,2.63150969]
[1760722260378,0.09940001,3800.2,3800.1,2.63150969]
[1760722260602,0.09940001,3800.2,3799.6,0.001]
[1760722260757,0.09940001,3800.2,3800.0,2.6315127]
[1760722260964,0.0994,3800.1,3799.9,2.63163771]
[1760722261159,0.0994,3800.0,3799.6,2.63285062]
[1760722261464,0.04587424,3800.2,3800.1,2.63150969]
[1760722261802,0.04587424,3800.2,3800.1,2.89466066]
[1760722261957,0.04587424,3800.2,3800.1,3.56876066]
[1760722262161,0.04587424,3800.2,3800.1,3.58189304]
[1760722262697,0.04587424,3800.2,3800.1,3.56876066]
[1760722262863,0.04587424,3800.2,3800.1,2.63150969]
[1760722263958,0.04787424,3800.2,3800.1,2.63150969]
[1760722264359,0.14997424,3800.2,3800.1,2.63150969]
[1760722264591,0.14997424,3800.2,3799.6,2.63284767]
[1760722264893,0.14997424,3800.2,3800.0,2.63153422]
[1760722265097,0.10410001,3800.2,3800.0,2.63153422]
[1760722265266,0.00200001,3800.2,3799.6,2.63282656]
[1760722265459,0.1312,3799.8,3799.6,0.001]
[1760722265674,0.1312,3799.8,3799.7,2.63178672]
[1760722265879,0.00200001,3800.2,3800.1,2.63150969]
[1760722266070,0.13320001,3800.2,3800.1,2.63150969]
[1760722268410,0.23530001,3800.2,3800.1,2.63150969]
[1760722269207,0.17907259,3800.2,3800.1,2.63150969]
[1760722269386,0.17907259,3800.2,3800.1,2.84890969]
[1760722269577,0.04787259,3800.2,3800.1,3.39696478]
[1760722269772,0.04787259,3800.2,3800.1,2.63150969]
[1760722272199,0.28117259,3800.2,3800.0,2.63155343]
[1760722272387,0.28117259,3800.2,3800.1,2.63150969]
[1760722272707,0.28117259,3800.2,3800.0,2.63152884]
[1760722273413,0.1021,3800.1,3799.6,0.001]
[1760722273627,0.13499387,3800.1,3799.6,0.001]
[1760722273838,0.1021,3800.1,3799.8,2.63169578]
[1760722274120,0.04787259,3800.2,3799.7,2.63178672]
[1760722274320,0.04787259,3800.2,3800.1,2.84890969]
[1760722274788,0.0698184,3800.5,3800.4,2.63130196]
[1760722274987,0.0698184,3800.5,3800.4,2.64442915]
[1760722275189,0.0698184,3800.5,3800.4,3.06040196]
[1760722276097,0.0698184,3800.5,3800.4,3.07352915]
[1760722276297,0.002,3800.6,3800.5,2.63123273]
[1760722276610,0.002,3800.6,3800.5,3.06033273]
[1760722276988,1e-08,3800.9,3800.8,2.63102504]
[1760722277187,0.13539343,3801.9,3801.0,2.6308866]
[1760722277188,1e-08,3801.1,3801.0,2.6308866]
[1760722278489,1e-08,3801.1,3800.1,0.2174]
[1760722278490,0.09900001,3801.1,3800.1,0.2174]
[1760722278691,0.09900001,3801.1,3800.7,2.63106318]
[1760722278885,0.51168327,3801.0,3800.8,2.63100258]
[1760722279085,0.2148,3800.9,3800.8,2.63100258]
[1760722279291,0.2148,3800.9,3800.1,0.2174]
[1760722279503,0.13308781,3800.8,3799.7,2.63178672]
[1760722279792,0.1002,3800.8,3800.5,2.63118692]
[1760722280108,0.1002,3800.7,3799.6,0.001]
[1760722280311,0.2148,3800.9,3799.7,2.63178672]
[1760722280648,0.41268327,3801.0,3800.6,2.63116016]
[1760722280932,0.41268327,3801.0,3800.7,2.63107179]
[1760722281132,0.3128,3800.9,3800.7,2.63107179]
[1760722281897,0.3128,3800.9,3800.5,2.6312248]
[1760722281898,0.34788781,3800.8,3799.6,1.729]
[1760722282132,0.315,3800.8,3799.8,1.99127867]
[1760722282432,0.36086811,3800.8,3800.4,2.63124064]
[1760722282629,0.13188867,3800.7,3800.2,2.6314237]
[1760722282833,0.26186811,3800.8,3800.1,0.2323]
[1760722283013,0.26186811,3800.8,3799.9,0.50644176]
[1760722283222,0.26186811,3800.8,3800.0,2.63157894]
[1760722283400,0.26186811,3800.8,3800.6,2.6311054]
[1760722283810,0.099,3800.7,3799.9,0.50644176]
[1760722284046,0.03288954,3800.6,3799.7,2.1684]
[1760722284201,0.03288954,3800.6,3799.8,2.63171745]
[1760722284399,0.26186811,3800.8,3800.7,2.63109427]
[1760722284625,0.04586811,3800.8,3800.7,2.63109427]
[1760722284936,0.1312,3800.7,3800.6,2.63114076]
[1760722285147,0.04586811,3800.8,3800.7,2.63109427]
[1760722285649,0.04586811,3800.8,3799.4,2.63198727]
[1760722285650,0.1312,3800.7,3799.9,0.2323]
[1760722285818,0.1312,3800.7,3800.6,2.6311635]
[1760722286019,0.4127273,3800.9,3800.8,2.63102504]
[1760722286864,0.1312,3800.8,3799.8,0.1312]
[1760722287188,0.1312,3800.6,3799.6,0.1322]
[1760722287323,0.099,3800.7,3799.6,0.001]
[1760722287655,0.1312,3799.9,3799.8,2.63171745]
[1760722287855,0.1312,3799.9,3799.8,3.15816787]
[1760722288454,0.1312,3799.9,3799.8,2.63171745]
[1760722289567,0.04587403,3800.2,3800.1,2.63150969]
[1760722290272,0.1312,3800.1,3799.9,2.63158753]
[1760722290480,0.14487403,3800.2,3799.9,2.63158753]
[1760722290775,0.04587403,3800.2,3800.1,2.63150969]
[1760722290938,0.45865576,3800.2,3800.1,2.63150969]
[1760722291140,0.1312,3800.1,3799.8,2.63170654]
[1760722291469,0.1312,3800.0,3799.8,0.26327065]
[1760722291670,0.1312,3800.0,3799.9,2.6316482]
[1760722292272,0.1312,3800.0,3799.9,3.0720482]
[1760722292477,0.45865576,3800.2,3800.1,2.63150969]
[1760722292648,0.45865576,3800.2,3800.1,2.86380969]
[1760722292838,0.1312,3800.8,3800.6,2.63114378]
[1760722293039,0.1312,3800.8,3800.7,2.63109427]
[1760722293240,0.04586663,3800.9,3800.8,2.63102504]
[1760722293540,1e-08,3801.1,3800.9,2.63095582]
[1760722293861,1e-08,3801.1,3800.9,3.65471391]
[1760722294062,1e-08,3801.1,3800.9,3.78591391]
[1760722295569,1e-08,3801.1,3800.9,3.34551391]
[1760722295979,1e-08,3801.1,3800.9,3.78591391]
[1760722296965,1e-08,3801.1,3800.6,2.63112311]
[1760722297255,0.1312,3800.9,3800.5,2.63116847]
[1760722297569,0.1312,3800.9,3800.3,2.6313712]
[1760722297756,0.1312,3800.9,3800.7,2.63104062]
[1760722297959,0.1312,3800.9,3800.2,2.762589]
[1760722298185,0.1312,3800.9,3800.8,2.63102504]
[1760722298395,0.1312,3800.9,3800.2,0.1312]
[1760722298709,0.1312,3800.6,3800.5,2.63221037]
[1760722299367,0.1312,3800.9,3800.5,0.001]
[1760722299568,0.1312,3800.9,3800.8,2.63102504]
[1760722300109,0.3495,3800.9,3800.5,0.001]
[1760722300308,0.2183,3800.9,3800.5,0.001]
[1760722300484,0.1312,3800.7,3800.5,0.001]
[1760722300870,0.1312,3800.7,3800.6,2.6311635]
[1760722301073,0.1312,3800.7,3800.5,2.63221925]
[1760722301499,0.2302,3800.7,3800.5,0.001]
[1760722302082,0.13188954,3800.6,3800.5,0.001]
[1760722302410,12.89782754,3800.6,3800.5,0.001]
[1760722302703,7.65148913,3800.6,3800.5,0.001]
[1760722302903,4.50535313,3800.6,3800.5,0.001]
[1760722303068,6.63430313,3800.6,3800.5,0.001]
[1760722303268,4.50535313,3800.6,3800.5,0.001]
[1760722303472,1.7738736,3800.6,3800.5,0.001]